bitfinex/quotes_ETHUSD_20260312
["timestamp","ask_amount","ask_price","bid_price","bid_amount"]
[1773300727474,2.091,2039.5,2038.6,0.48090392]
[1773300727674,1.22585074,2039.4,2038.7,1.70717556]
[1773300727878,1.22585074,2039.4,2038.5,1.2263634]
[1773300728074,1.22585074,2039.4,2038.4,3.38165416]
[1773300728246,1.70360622,2039.4,2038.4,3.38165416]
[1773300728669,1.70360622,2039.4,2038.6,0.6]
[1773300728872,0.47775548,2039.0,2038.1,1.22662786]
[1773300729375,0.47775548,2039.0,2038.0,1.2266625]
[1773300729674,0.47775548,2038.8,2037.9,1.70761937]
[1773300729846,0.47775548,2038.8,2037.8,1.22676262]
[1773300730649,0.47775548,2038.6,2037.7,2.58268008]
[1773300730849,0.47775548,2038.6,2037.7,3.80955133]
[1773300731194,0.47775548,2038.6,2037.7,2.58268008]
[1773300731681,1.22639195,2038.5,2038.4,0.001]
[1773300731848,1.22639195,2038.5,2037.7,2.58268008]
[1773300732049,0.47775548,2038.4,2038.2,0.001]
[1773300732281,0.47775548,2038.4,2037.4,2.15523226]
[1773300732447,0.47775548,2038.4,2037.4,0.48090392]
[1773300732648,0.47775548,2038.4,2037.9,0.001]
[1773300734348,1.22651228,2038.3,2037.9,0.001]
[1773300735085,1.22627164,2038.7,2037.9,0.48190392]
[1773300735475,1.22627164,2038.7,2037.9,0.001]
[1773300735476,1.70402712,2038.7,2037.9,0.001]
[1773300735781,3.34327164,2038.7,2037.9,0.001]
[1773300736882,0.47775548,2038.6,2037.9,0.001]
[1773300738778,1.22639195,2038.5,2037.9,0.001]
[1773300740280,7.50732329,2038.6,2037.9,0.001]
[1773300740281,3.35137763,2038.6,2037.9,0.001]
[1773300740967,2.126,2038.6,2037.9,0.001]
[1773300741162,0.48777228,2038.8,2037.9,0.46253011]
[1773300741363,3.82682671,2039.1,2038.3,1.67432834]
[1773300741663,1.71382671,2039.1,2038.3,2.13585845]
[1773300741881,1.71382671,2039.1,2038.0,3.34865668]
[1773300741882,3.80244272,2039.7,2038.8,1.67432834]
[1773300742204,3.80244272,2039.7,2038.7,0.46153011]
[1773300742904,3.80244272,2039.7,2038.3,0.46153011]
[1773300742905,0.48777228,2039.5,2038.3,0.46153011]
[1773300743100,0.48777228,2039.3,2038.4,1.22645211]
[1773300743302,0.48777228,2039.3,2038.3,1.68801081]
[1773300743600,0.48777228,2039.3,2038.3,1.2264807]
[1773300743790,0.48777228,2039.3,2038.1,1.22663264]
[1773300743993,0.48777228,2039.2,2038.0,1.68821784]
[1773300744193,0.48777228,2039.2,2038.1,0.46153011]
[1773300744194,2.1,2039.1,2038.1,0.46153011]
[1773300745107,2.103,2039.0,2038.1,0.46153011]
[1773300745779,1.22615135,2038.9,2038.1,1.68810834]
[1773300745979,1.71392363,2038.9,2038.1,1.22657823]
[1773300746187,1.71392363,2038.9,2038.1,1.22757823]
[1773300746988,1.71392363,2038.9,2038.1,1.22762996]
[1773300747199,1.71392363,2038.9,2038.1,1.22762957]
[1773300748008,1.71392363,2038.9,2038.1,0.001]
[1773300748305,0.48777228,2038.8,2038.1,0.001]
[1773300748679,1.22615135,2038.9,2038.1,0.001]
[1773300748879,3.82892363,2038.9,2038.1,0.001]
[1773300749079,0.48777228,2038.8,2038.1,0.001]
[1773300750006,1.22627164,2038.7,2038.1,1.22763264]
[1773300751904,0.48777228,2038.6,2038.1,0.001]
[1773300752285,1.71411834,2038.6,2038.1,0.001]
[1773300752702,2.60277228,2038.9,2038.1,0.001]
[1773300752907,1.22621149,2038.8,2038.1,0.46253011]
[1773300753517,3.34119594,2038.9,2038.1,0.46253011]
[1773300754310,2.115,2038.9,2038.2,1.68810257]
[1773300754514,3.34119023,2038.9,2038.2,1.68810257]
[1773300755919,1.22612529,2039.0,2038.3,0.46153011]
[1773300756316,3.84284878,2039.1,2038.4,1.22645211]
[1773300756509,1.2260765,2039.1,2038.5,0.46153011]
[1773300756815,3.35495487,2039.3,2038.5,0.46153011]
[1773300757724,3.84272715,2039.3,2038.5,0.46153011]
[1773300758600,1.71372715,2039.3,2038.6,1.22633179]
[1773300758825,1.22597096,2039.2,2038.6,1.22633179]
[1773300759015,1.7136895,2039.3,2038.6,1.22633179]
[1773300759211,0.002,2039.5,2038.6,1.6878619]
[1773300759525,3.359818,2039.5,2038.7,0.46153011]
[1773300759929,0.48777228,2039.4,2038.7,0.46153011]
[1773300760497,0.002,2039.1,2038.7,1.68776924]
[1773300763129,0.002,2039.1,2038.5,2.1408653]
[1773300763335,0.49051362,2039.1,2038.4,1.22641726]
[1773300764128,0.49051362,2039.1,2038.4,1.69610194]
[1773300765327,1.22609122,2039.0,2038.4,1.69610481]
[1773300766831,1.71460484,2039.0,2038.3,1.22748546]
[1773300767210,1.22621149,2038.8,2038.3,1.22749911]
[1773300767718,1.71657985,2039.1,2038.4,0.46968468]
[1773300769524,1.71657985,2039.1,2038.5,1.22639195]
[1773300770325,0.48762488,2039.0,2038.5,1.22639195]
[1773300770520,0.48762488,2039.0,2038.4,1.226404]
[1773300771738,1.71372102,2039.0,2038.3,4.90693134]
[1773300772238,1.71372102,2039.0,2038.3,5.39662944]
[1773300772736,0.48762488,2039.0,2038.3,5.39662944]
[1773300772922,0.48762488,2039.0,2038.4,0.4896981]
[1773300773942,0.48762488,2039.0,2038.5,1.22639195]
[1773300774234,1.71372719,2039.0,2038.5,1.22639195]
[1773300775040,0.002,2038.9,2038.5,1.22639195]
[1773300775216,0.002,2038.9,2038.4,0.4906981]
[1773300775412,0.48962488,2038.9,2038.5,1.22639195]
[1773300776145,0.48962488,2038.9,2038.4,0.001]
[1773300776346,0.48762488,2038.7,2038.4,0.001]
[1773300777348,0.48762488,2038.7,2038.1,0.001]
[1773300777721,0.48762488,2038.7,2038.1,1.67218062]
[1773300778020,0.48762488,2038.7,2038.1,0.001]
[1773300778234,0.48762488,2038.5,2038.1,0.001]
[1773300780532,0.48762488,2038.3,2038.1,0.001]
[1773300781722,2.131,2038.2,2038.1,0.001]
[1773300782049,2.61862488,2038.2,2038.1,0.001]
[1773300782725,0.48762488,2038.1,2037.9,0.001]
[1773300784820,0.48762488,2038.0,2037.9,0.001]
[1773300785655,0.48762488,2038.0,2037.3,1.71681241]
[1773300786044,0.48762488,2038.0,2037.4,0.4896981]
[1773300786657,0.48762488,2038.2,2037.6,0.4896981]
[1773300786821,2.129,2038.2,2037.8,1.71651132]
[1773300787558,2.129,2038.2,2037.9,0.4896981]
[1773300787934,2.04589199,2038.2,2037.9,0.4896981]
[1773300788133,2.11,2038.8,2038.2,0.4896981]
[1773300788731,2.11,2038.8,2038.3,1.22651228]
[1773300788935,1.71578102,2038.9,2038.3,1.22651228]
[1773300788936,1.71579093,2038.9,2038.3,1.22651228]
[1773300789141,3.82679093,2038.9,2038.3,1.22651228]
[1773300789647,2.60062488,2038.9,2038.3,1.22651228]
[1773300789853,3.82678181,2038.9,2038.3,1.22651228]
[1773300790055,2.60062488,2038.9,2038.3,1.22651228]
[1773300790422,0.002,2038.5,2038.3,1.22651228]
[1773300791730,1.71366353,2039.1,2038.4,0.4896981]
[1773300792941,0.48762488,2039.1,2038.4,0.4896981]
[1773300793142,0.48762488,2039.1,2038.5,1.22639195]
[1773300793540,1.71367952,2039.1,2038.5,1.22639195]
[1773300793952,0.48762488,2039.0,2038.2,4.90609731]
[1773300794137,2.89723526,2039.1,2038.0,1.22767661]
[1773300794138,0.48762488,2038.8,2038.0,1.22767661]
[1773300794338,0.48762488,2038.6,2038.0,0.001]
[1773300794657,0.48762488,2038.5,2038.0,1.22769281]
[1773300794841,0.48762488,2038.7,2038.0,3.38857153]
[1773300795038,0.48762488,2038.7,2038.0,1.22768925]
[1773300795262,1.71395667,2038.6,2038.0,0.001]
[1773300795457,0.48762488,2038.5,2038.0,0.001]
[1773300796235,1.71393986,2038.7,2038.0,0.001]
[1773300796637,3.83293986,2038.7,2038.0,0.4906981]
[1773300797366,3.83293986,2038.7,2038.1,1.71633074]
[1773300798854,2.119,2038.7,2038.1,1.71633074]
[1773300801771,2.119,2038.7,2038.2,0.49500342]
[1773300803167,2.119,2038.7,2038.3,0.001]
[1773300803370,0.002,2038.5,2038.3,0.001]
[1773300803867,0.002,2038.5,2038.3,1.22751228]
[1773300805071,0.002,2038.7,2038.5,0.49500342]
[1773300806372,0.002,2038.7,2038.6,1.22633179]
[1773300806763,0.002,2038.7,2038.6,1.72133521]
[1773300807070,0.49819739,2039.3,2038.6,3.39251583]
[1773300808354,1.22597096,2039.2,2038.6,3.39251583]
[1773300810176,1.22597096,2039.2,2038.6,1.72133521]
[1773300810770,0.49819739,2039.2,2038.6,1.72133521]
[1773300811268,0.49819739,2039.2,2038.7,0.49500342]
[1773300811569,0.49819739,2039.2,2038.6,1.22633179]
[1773300812974,0.49819739,2039.0,2038.5,1.72135539]
[1773300813204,0.49819739,2039.0,2038.5,1.22635197]
[1773300813360,0.49819739,2039.0,2038.4,4.90579988]
[1773300814382,0.49819739,2039.0,2038.4,5.4008033]
[1773300814881,1.7242943,2039.0,2038.4,5.4008033]
[1773300815188,0.49819739,2039.0,2038.4,5.4008033]
[1773300815741,0.49819739,2039.3,2038.5,0.49500342]
[1773300815968,0.49819739,2039.3,2038.7,0.49500342]
[1773300816759,0.002,2038.8,2038.7,0.49500342]
[1773300816967,0.002,2038.8,2038.7,1.72127506]
[1773300817864,0.002,2039.0,2038.7,1.72127506]
[1773300820794,0.49819739,2039.6,2038.8,0.49500342]
[1773300820991,0.49819739,2039.6,2038.9,2.16579833]
[1773300821292,0.49819739,2039.6,2039.0,1.22609122]
[1773300821693,0.47164163,2039.5,2039.0,1.22609122]
[1773300822096,0.47164163,2039.5,2038.9,1.22611314]
[1773300822269,0.47164163,2039.5,2038.7,1.67914214]
[1773300822774,0.47164163,2039.5,2038.7,1.2262261]
[1773300822987,0.47164163,2039.5,2038.7,1.67914214]
[1773300823191,0.47164163,2039.3,2038.7,1.67914214]
[1773300823984,0.47164163,2039.1,2038.6,0.001]
[1773300824296,0.47164163,2039.1,2038.6,1.22732707]
[1773300824666,0.47164163,2039.1,2038.6,0.001]
[1773300825194,0.47164163,2038.9,2038.6,0.001]
[1773300827301,0.47164163,2038.8,2038.6,0.001]
[1773300828697,0.47164163,2038.8,2038.4,0.001]
[1773300829096,0.47164163,2039.2,2038.5,0.45291604]
[1773300829296,1.22591112,2039.3,2038.7,0.45291604]
[1773300829501,1.22591112,2039.3,2038.7,0.42838589]
[1773300829696,0.47164163,2039.4,2038.7,0.42838589]
[1773300829697,1.69754114,2039.4,2038.7,0.42838589]
[1773300829899,0.002,2038.8,2038.7,0.42838589]
[1773300830092,1.22589951,2039.4,2038.7,0.42838589]
[1773300830282,0.002,2039.0,2038.7,0.42838589]
[1773300831184,0.002,2039.0,2038.8,1.22621149]
[1773300831389,0.002,2039.0,2038.8,1.71395535]
[1773300831902,0.49544071,2039.7,2038.9,0.48774386]
[1773300833384,0.49544071,2039.7,2039.1,0.48774386]
[1773300835507,0.49544071,2039.7,2039.2,1.71371482]
[1773300837609,0.49544071,2039.9,2039.4,1.7135946]
[1773300837979,0.49544071,2039.9,2039.5,0.48774386]
[1773300838710,3.81691777,2040.1,2039.5,0.48774386]
[1773300839210,0.49544071,2040.0,2039.5,0.48774386]
[1773300839707,1.7209428,2040.0,2039.6,1.22573053]
[1773300840590,0.49544071,2040.3,2039.7,0.48774386]
[1773300841410,0.49544071,2040.3,2039.6,1.22573053]
[1773300842215,0.49544071,2040.1,2039.6,1.22573053]
[1773300842508,0.49544071,2040.1,2039.6,1.71347439]
[1773300842908,4.90130499,2040.3,2039.6,1.71347439]
[1773300842909,0.49544071,2040.3,2039.7,0.48774386]
[1773300843311,0.002,2039.8,2039.7,0.48774386]
[1773300843614,0.49544071,2040.3,2039.7,0.48774386]
[1773300843813,0.002,2040.0,2039.7,0.48774386]
[1773300844410,0.002,2040.0,2039.8,1.22561035]
[1773300844616,0.002,2040.3,2039.8,1.71335421]
[1773300844817,1.72071334,2040.4,2039.9,0.48774386]
[1773300845721,1.72070144,2040.4,2039.9,0.48774386]
[1773300846615,1.72070144,2040.4,2040.0,1.22549019]
[1773300847117,3.81366339,2040.5,2040.0,1.71323405]
[1773300847322,3.81366339,2040.5,2040.1,0.48774386]
[1773300848021,0.49544071,2040.4,2039.9,0.48774386]
[1773300848521,0.49544071,2040.4,2039.5,0.48774386]
[1773300848722,0.49544071,2040.2,2039.7,0.48774386]
[1773300850928,1.72084518,2040.2,2039.7,1.71341058]
[1773300851098,0.49544071,2040.4,2039.8,0.48774386]
[1773300851733,0.49544071,2040.6,2039.8,0.48774386]
[1773300852794,0.49544071,2040.5,2039.8,0.48774386]
[1773300853023,0.49544071,2040.5,2039.9,1.22555027]
[1773300853024,0.49544071,2040.4,2039.9,1.22555027]
[1773300854337,0.49544071,2040.4,2039.8,1.71330999]
[1773300854843,0.49544071,2040.4,2039.9,0.48774386]
[1773300855329,1.72070433,2040.4,2039.9,1.71325786]
[1773300856136,0.49544071,2040.3,2039.8,1.22556895]
[1773300857439,0.49544071,2040.2,2039.9,0.001]
[1773300857642,0.49744071,2040.2,2039.9,0.001]
[1773300858745,0.002,2040.2,2039.9,0.001]
[1773300859721,0.002,2040.2,2039.9,0.48874386]
[1773300862334,0.002,2040.2,2039.9,1.71425019]
[1773300862645,0.002,2040.2,2040.0,0.4959013]
[1773300863942,0.49729125,2040.2,2039.9,1.22653078]
[1773300864641,0.002,2040.2,2039.9,1.22653078]
[1773300864847,1.72054154,2040.4,2039.9,1.72243208]
[1773300865415,0.49529125,2040.4,2039.9,1.72243208]
[1773300865618,1.72054457,2040.4,2039.9,1.72243208]
[1773300865842,0.49529125,2040.3,2039.9,0.4969013]
[1773300866228,1.22499682,2040.9,2040.3,1.7212113]
[1773300866434,1.22499682,2040.9,2040.4,0.4959013]
[1773300866637,1.1363573,2041.0,2040.4,0.4959013]
[1773300866940,1.1363573,2041.0,2040.5,1.16333557]
[1773300866941,1.63164855,2041.0,2040.5,1.16333557]
[1773300867142,1.1363573,2041.0,2040.6,0.4959013]
[1773300867518,0.003,2041.1,2040.7,0.4959013]
[1773300868137,1.22783111,2041.1,2040.7,0.4959013]
[1773300868543,0.003,2041.1,2040.7,1.72096349]
[1773300868939,0.003,2041.1,2040.8,0.4959013]
[1773300869351,1.22471217,2041.3,2040.8,0.4959013]
[1773300869721,4.89860319,2041.4,2040.8,0.4959013]
[1773300869722,6.12331536,2041.4,2040.9,0.4959013]
[1773300870427,7.34807875,2041.3,2040.9,0.4959013]
[1773300870623,6.61860661,2041.3,2040.8,0.4959013]
[1773300870822,6.12331536,2041.2,2040.8,0.4959013]
[1773300871451,0.002,2041.1,2040.8,0.4959013]
[1773300871955,6.12531536,2041.1,2040.7,1.22506693]
[1773300872133,6.12531536,2041.1,2040.6,1.72099375]
[1773300872343,6.12331536,2041.0,2040.6,1.72099375]
[1773300873147,7.34824106,2041.0,2040.6,1.721023]
[1773300873466,6.12331536,2041.0,2040.6,1.721023]
[1773300874263,6.12331536,2041.0,2040.7,0.4959013]
[1773300875256,7.34821442,2041.0,2040.7,0.4959013]
[1773300875456,6.12331536,2040.9,2040.6,1.2251217]
[1773300875654,6.61860661,2040.9,2040.3,0.4959013]
[1773300875860,6.12331536,2040.8,2040.3,0.4959013]
[1773300876360,6.12331536,2040.7,2040.3,0.4959013]
[1773300876558,0.49529125,2040.9,2040.3,0.4959013]
[1773300877058,0.49529125,2040.9,2040.2,1.72127136]
[1773300877059,0.49529125,2040.7,2040.2,1.72127136]
[1773300877268,0.49529125,2040.7,2040.2,3.38915197]
[1773300877635,1.72026263,2040.9,2040.3,0.4959013]
[1773300877958,0.49529125,2040.7,2040.1,1.22639179]
[1773300878253,0.49529125,2040.6,2040.1,1.22639179]
[1773300879657,1.72044153,2040.6,2040.1,1.22639179]
[1773300881060,1.72044153,2040.6,2040.1,0.001]
[1773300881061,0.49529125,2040.5,2040.1,0.001]
[1773300881362,0.49529125,2040.4,2040.1,0.001]
[1773300881936,1.72054759,2040.4,2040.1,0.001]
[1773300882343,6.12331536,2040.3,2040.1,0.001]
[1773300882859,0.47379603,2040.2,2040.1,0.001]
[1773300884062,0.47379603,2040.2,2039.9,0.001]
[1773300884249,6.12231536,2040.1,2039.9,0.001]
[1773300885263,1.69903281,2040.5,2039.9,0.47542326]
[1773300885464,0.47379603,2040.9,2040.1,0.47442326]
[1773300885674,0.47379603,2040.9,2040.3,0.47542326]
[1773300885838,5.92231536,2040.8,2040.3,0.47542326]
[1773300886249,5.92231536,2040.7,2040.4,1.22524995]
[1773300886672,5.92231536,2040.7,2040.3,0.47542326]
[1773300886859,5.92231536,2040.6,2040.3,0.001]
[1773300888061,5.92231536,2040.5,2040.3,0.001]
[1773300888451,5.92231536,2040.4,2040.3,0.001]
[1773300888647,6.39611139,2040.4,2040.0,0.001]
[1773300888867,5.92231536,2040.3,2040.0,0.001]
[1773300889659,6.39611139,2040.3,2040.0,0.001]
[1773300889875,5.92231536,2040.2,2040.0,0.001]
[1773300890374,5.92231536,2040.1,2040.0,0.001]
[1773300891149,7.14774548,2040.1,2040.0,0.001]
[1773300891880,5.92231536,2040.1,2040.0,0.001]
[1773300892046,2.091,2040.4,2040.0,0.32817173]
[1773300894161,3.31628655,2040.4,2040.0,0.32817173]
[1773300895481,3.31628655,2040.4,2040.0,1.55366066]
[1773300895977,3.31628655,2040.4,2040.0,0.32817173]
[1773300896159,6.94768199,2040.3,2040.0,0.001]
[1773300897276,5.72231536,2040.2,2040.0,0.001]
[1773300897583,5.72231536,2040.3,2040.0,0.001]
[1773300898860,5.72231536,2040.2,2040.0,0.001]
[1773300899184,6.19157148,2040.3,2040.0,0.001]
[1773300899386,0.46925612,2040.2,2039.7,0.001]
[1773300899680,2.094,2040.1,2039.7,1.55383939]
[1773300900260,2.094,2040.1,2039.7,1.55382085]
[1773300900661,2.56325612,2040.1,2039.7,1.22666337]
[1773300900961,3.78868624,2040.1,2040.0,0.001]
[1773300901157,5.72231536,2040.0,2039.7,0.001]
[1773300901364,0.46925612,2039.9,2039.7,0.001]
[1773300901873,5.72231536,2039.8,2039.3,1.80035258]
[1773300902060,0.46925612,2039.8,2039.3,1.55403332]
[1773300902473,0.46925612,2039.8,2039.3,1.55404244]
[1773300902474,5.72231536,2039.7,2039.3,1.55404244]
[1773300903073,6.19157148,2039.6,2039.1,1.55417337]
[1773300903391,2.56425612,2039.5,2038.9,1.55432308]
[1773300903691,8.28657148,2039.5,2039.0,0.32817173]
[1773300905501,5.72231536,2039.4,2039.0,1.55425236]
[1773300905660,6.19157148,2039.4,2038.8,1.80099371]
[1773300905993,5.72231536,2039.3,2038.9,0.32817173]
[1773300906194,0.46925612,2039.3,2038.8,0.001]
[1773300906771,4.98872888,2039.5,2038.8,0.001]
[1773300906772,0.46925612,2039.1,2038.8,0.001]
[1773300907195,2.097,2039.0,2038.8,0.001]
[1773300907362,8.28857148,2039.0,2038.8,0.001]
[1773300907561,9.51467508,2039.0,2038.8,0.001]
[1773300908183,0.46925612,2038.8,2038.4,0.001]
[1773300908501,5.72231536,2038.7,2038.4,0.001]
[1773300909503,0.46925612,2038.5,2038.4,0.001]
[1773300909994,0.46925612,2038.5,2038.1,4.90739849]
[1773300909995,8.28857148,2038.5,2038.1,0.001]
[1773300910197,0.46925612,2038.3,2038.1,0.001]
[1773300910850,6.19157148,2038.2,2038.1,0.001]
[1773300910970,0.46925612,2038.2,2038.1,0.001]
[1773300911400,6.19157148,2038.2,2038.1,0.001]
[1773300911587,2.097,2038.5,2037.8,0.001]
[1773300911588,0.46925612,2038.1,2037.8,0.001]
[1773300911893,1.6958139,2038.3,2037.8,0.001]
[1773300912196,0.46925612,2038.1,2037.8,0.001]
[1773300912782,0.46925612,2037.9,2037.8,0.001]
[1773300912985,0.46925612,2037.9,2037.5,1.22798434]
[1773300913181,5.72031536,2037.8,2037.5,1.22798434]
[1773300913582,5.72031536,2037.8,2037.5,0.33017173]
[1773300913781,2.098,2038.1,2037.6,0.32917173]
[1773300914172,2.098,2038.1,2038.0,0.001]
[1773300914365,7.81831536,2038.1,2038.0,0.001]
[1773300914607,8.28757148,2038.1,2038.0,0.001]
[1773300914817,0.46925612,2038.0,2037.8,0.001]
[1773300914987,6.18957148,2038.0,2037.8,0.001]
[1773300915420,0.46925612,2037.9,2037.5,0.001]
[1773300915914,6.18957148,2037.8,2037.5,0.001]
[1773300916416,6.18957148,2037.7,2037.5,0.001]
[1773300916717,0.46925612,2037.7,2037.5,0.001]
[1773300918288,5.72031536,2037.6,2037.5,0.001]
[1773300919421,6.18957148,2037.6,2037.5,0.001]
[1773300921917,0.47667921,2038.0,2037.5,0.001]
[1773300923195,0.47667921,2038.0,2037.5,1.22799386]
[1773300926211,0.47667921,2037.8,2037.5,1.22799386]
[1773300926793,0.47667921,2038.3,2037.5,1.35816559]
[1773300926999,5.93699457,2038.3,2037.8,0.13017173]
[1773300927733,0.002,2038.0,2037.9,1.22675303]
[1773300929732,0.002,2038.0,2037.8,4.90716563]
[1773300929733,0.002,2038.0,2037.7,0.001]
[1773300930221,0.002,2038.0,2037.7,0.13117173]
[1773300931840,0.002,2038.0,2037.8,1.22681322]
[1773300933231,0.47867921,2038.0,2037.6,4.90745156]
[1773300933398,0.47867921,2038.0,2037.6,1.22687343]
[1773300933825,0.47867921,2038.0,2037.5,0.001]
[1773300934811,0.47667921,2037.9,2037.5,0.001]
[1773300936127,2.55767921,2037.9,2037.5,0.001]
[1773300936733,0.47667921,2037.8,2037.5,0.001]
[1773300939534,0.47667921,2037.8,2037.7,0.001]
[1773300939740,0.47867921,2037.8,2037.7,0.001]
[1773300947026,0.46546294,2037.7,2037.5,0.001]
[1773300947546,0.46546294,2037.6,2037.5,0.001]
[1773300947742,0.46546294,2037.6,2037.2,0.001]
[1773300949347,0.46546294,2037.5,2037.0,0.001]
[1773300949653,0.46546294,2037.3,2036.9,1.22735529]
[1773300949816,0.46546294,2037.3,2036.9,1.13970986]
[1773300951041,0.46546294,2037.3,2036.8,1.22836835]
[1773300951345,0.46546294,2037.3,2037.1,0.001]
[1773300951926,0.49765914,2037.2,2037.1,0.001]
[1773300953742,2.57865914,2037.3,2037.1,0.001]
[1773300954143,0.49765914,2037.2,2036.9,1.22835529]
[1773300955747,0.49765914,2037.2,2036.9,0.001]
[1773300955921,0.49765914,2037.1,2036.9,0.001]
[1773300957221,0.49765914,2037.3,2036.9,0.32915541]
[1773300957432,0.49765914,2037.3,2036.9,0.001]
[1773300957850,0.49765914,2037.3,2036.9,1.22835529]
[1773300958751,0.002,2037.4,2037.0,0.32815541]
[1773300959957,0.002,2037.4,2037.1,1.22723479]
[1773300960253,0.49965914,2037.4,2037.1,1.22723479]
[1773300960557,0.49965914,2037.4,2037.0,1.22724678]
[1773300960773,0.49965914,2037.4,2036.9,1.2283516]
[1773300961766,0.49965914,2037.4,2036.9,0.001]
[1773300961977,0.49965914,2037.4,2036.9,1.22835243]
[1773300962268,0.49765914,2037.3,2036.9,0.001]
[1773300963058,0.49765914,2037.2,2036.8,0.001]
[1773300964124,1.22723479,2037.1,2036.8,0.001]
[1773300964326,0.49765914,2037.0,2036.8,0.001]
[1773300964550,2.56865914,2036.9,2036.8,0.001]
[1773300966361,2.57065914,2036.9,2036.8,0.001]
[1773300966845,0.49765914,2036.8,2036.6,0.001]
[1773300968866,3.30036074,2036.9,2036.6,0.001]
[1773300968867,2.074,2036.9,2036.6,0.001]
[1773300969236,2.57165914,2036.9,2036.6,0.001]
[1773300971461,2.074,2036.9,2036.6,0.001]
[1773300972863,2.074,2036.9,2036.6,0.33015541]
[1773300973045,2.076,2036.9,2036.6,0.33015541]
[1773300973661,2.57365914,2036.9,2036.6,0.001]
[1773300973861,2.076,2036.9,2036.6,1.22852405]
[1773300974067,0.49765914,2036.8,2036.6,1.22852405]
[1773300974262,2.077,2036.7,2036.6,1.22852405]
[1773300974440,0.49765914,2037.0,2036.6,1.22852405]
[1773300974856,2.077,2036.9,2036.6,1.22852405]
[1773300975254,0.49765914,2037.0,2036.6,1.22852405]
[1773300975455,2.077,2036.9,2036.6,1.22852405]
[1773300975939,0.49765914,2036.8,2036.6,0.001]
[1773300978166,2.077,2036.9,2036.6,0.001]
[1773300979651,2.078,2036.9,2036.6,1.22853608]
[1773300982480,0.002,2037.0,2036.7,0.32915541]
[1773300983777,0.002,2037.0,2036.7,1.5565866]
[1773300983964,0.002,2037.0,2036.6,1.22850352]
[1773300983965,0.45872594,2037.0,2036.6,1.22850352]
[1773300985386,0.45872594,2037.0,2036.6,1.22852981]
[1773300985979,0.45872594,2037.0,2036.6,0.001]
[1773300986567,0.002,2037.0,2036.6,0.24179481]
[1773300988090,0.002,2037.0,2036.7,1.46827062]
[1773300989683,0.002,2037.0,2036.8,0.24079481]
[1773300990111,0.002,2037.0,2036.9,1.22735529]
[1773300990680,0.002,2037.0,2036.8,1.22836963]
[1773300991019,0.45872594,2037.0,2036.8,1.22836963]
[1773300991516,0.45872594,2037.0,2036.8,1.22841509]
[1773300992925,0.45872594,2037.0,2036.8,0.001]
[1773300996521,0.002,2037.0,2036.8,0.24179481]
[1773300996820,0.002,2037.0,2036.8,0.001]
[1773300998097,0.45872594,2037.0,2036.8,0.001]
[1773300999222,0.45672594,2036.9,2036.8,0.001]
[1773301000193,0.45672594,2036.9,2036.6,1.2284978]
[1773301001836,0.45672594,2036.9,2036.6,0.001]
[1773301003028,0.48010685,2036.8,2036.6,0.001]
[1773301003914,0.48210685,2036.8,2036.6,0.001]
[1773301007537,0.48210685,2036.8,2036.5,0.001]
[1773301007704,0.48010685,2036.7,2036.5,0.001]
[1773301007908,2.55010685,2036.6,2036.5,0.001]
[1773301008108,2.55010685,2036.6,2036.3,0.001]
[1773301008109,0.48010685,2036.5,2036.3,0.001]
[1773301008331,0.48010685,2036.5,2036.2,0.001]
[1773301008642,0.48010685,2036.3,2036.0,0.001]
[1773301008844,0.48010685,2036.1,2036.0,0.001]
[1773301009206,0.48010685,2036.1,2035.5,1.22815298]
[1773301009433,6.02698977,2036.5,2035.4,1.4710088]
[1773301009434,0.48010685,2035.9,2035.4,1.4710088]
[1773301010046,0.48010685,2035.9,2035.4,1.4710432]
[1773301010047,0.46458317,2035.8,2035.4,1.4710432]
[1773301014185,0.46458317,2036.7,2035.8,0.24279481]
[1773301014321,0.46458317,2036.7,2035.5,0.66966553]
[1773301014322,0.46458317,2036.7,2036.2,1.22777723]
[1773301014510,1.69206636,2036.7,2036.2,1.22777723]
[1773301014729,0.46458317,2036.6,2036.2,1.22777723]
[1773301015026,0.46458317,2036.6,2035.9,1.22795815]
[1773301015027,0.46458317,2036.5,2035.9,1.22795815]
[1773301015344,0.46458317,2036.5,2035.9,1.47075296]
[1773301015843,0.002,2036.1,2035.9,1.47075296]
[1773301016011,0.46458317,2036.5,2035.9,1.47075296]
[1773301016214,0.002,2036.3,2035.9,1.22795815]
[1773301016433,2.52658317,2036.3,2035.8,4.9118326]
[1773301016914,2.52658317,2036.3,2035.8,5.15462741]
[1773301017126,1.22957672,2036.6,2035.8,5.15462741]
[1773301017127,0.47860259,2036.5,2035.9,0.04279481]
[1773301017353,3.29054247,2036.6,2035.9,0.04279481]
[1773301017523,0.002,2037.0,2036.5,0.04279481]
[1773301017722,0.002,2037.0,2036.2,2.3146374]
[1773301017723,0.002,2037.0,2036.6,1.71798537]
[1773301017922,0.002,2037.0,2036.6,0.04279481]
[1773301018455,0.002,2037.0,2036.7,1.22747581]
[1773301019973,0.47860259,2036.7,2035.7,0.04279481]
[1773301020136,0.47860259,2036.7,2035.8,0.04279481]
[1773301020342,0.47860259,2036.7,2036.1,1.71798537]
[1773301020642,0.47860259,2036.7,2036.2,1.22777723]
[1773301021075,0.47860259,2036.6,2035.9,0.04279481]
[1773301022278,6.96496672,2037.1,2035.9,0.04279481]
[1773301022279,0.002,2037.5,2036.6,0.04279481]
[1773301022441,0.002,2037.5,2036.5,5.02557168]
[1773301022442,0.002,2037.5,2037.2,1.22717455]
[1773301023373,0.002,2037.5,2037.1,1.67783573]
[1773301024871,0.002,2037.5,2036.9,1.22732017]
[1773301025178,0.46658317,2037.5,2036.9,1.22732017]
[1773301026742,0.002,2037.5,2036.9,0.45061651]
[1773301028277,0.002,2037.5,2037.1,0.001]
[1773301028667,0.002,2037.3,2037.1,0.001]
[1773301030582,0.46458317,2037.1,2036.4,0.45061651]
[1773301030888,1.69187821,2037.0,2036.3,4.91066929]
[1773301031046,0.46458317,2037.0,2036.3,4.91066929]
[1773301031445,0.46458317,2037.0,2036.3,1.22771693]
[1773301033052,1.69190809,2037.0,2036.3,1.22771693]
[1773301033252,0.46458317,2037.0,2036.3,1.22771693]
[1773301033574,1.69188606,2037.0,2036.3,1.22771693]
[1773301033961,0.46458317,2037.0,2036.3,1.22771693]